bitfinex/quotes_BTCUSD_20250901
["timestamp","ask_amount","ask_price","bid_price","bid_amount"]
[1756687844876,1.05760669,108260.0,108250.0,0.00022226]
[1756687845081,0.96462668,108260.0,108250.0,0.00022226]
[1756687845297,1.12650668,108260.0,108250.0,0.00022226]
[1756687845914,0.96462668,108260.0,108250.0,0.00022226]
[1756687846120,1.13632453,108260.0,108250.0,0.00233226]
[1756687846530,0.7883771,108260.0,108250.0,0.00549226]
[1756687846737,1.13632453,108260.0,108250.0,0.00549226]
[1756687847528,0.61667925,108260.0,108250.0,0.00549226]
[1756687847756,0.59574043,108260.0,108250.0,0.00549226]
[1756687847967,0.41762043,108260.0,108250.0,0.19024976]
[1756687848177,0.43855925,108260.0,108250.0,0.19024976]
[1756687848391,0.18281882,108260.0,108250.0,0.53608719]
[1756687848597,0.59683767,108270.0,108250.0,0.6290672]
[1756687848801,0.59683767,108270.0,108260.0,0.00316]
[1756687849047,0.61777649,108270.0,108260.0,0.2291674]
[1756687849251,0.77965649,108270.0,108260.0,0.2312774]
[1756687849455,0.77965649,108270.0,108260.0,0.00527]
[1756687850269,0.61777649,108270.0,108260.0,0.19001043]
[1756687850481,0.34,108270.0,108260.0,0.28299044]
[1756687850840,0.70750219,108270.0,108260.0,0.28299044]
[1756687851041,0.0721143,108290.0,108280.0,0.18470631]
[1756687851225,0.0721143,108290.0,108280.0,0.00517]
[1756687851226,0.41864356,108290.0,108280.0,0.00517]
[1756687851426,0.75864356,108290.0,108280.0,0.00517]
[1756687851637,0.77958238,108290.0,108280.0,0.00517]
[1756687852273,0.18470631,108280.0,108270.0,0.00315]
[1756687852521,0.18470631,108280.0,108260.0,0.90202048]
[1756687852522,0.18472337,108270.0,108260.0,0.54908834]
[1756687852726,0.34656337,108270.0,108260.0,0.58771323]
[1756687852905,0.34656337,108270.0,108260.0,0.58973323]
[1756687853135,0.34656337,108270.0,108260.0,0.20615049]
[1756687853341,0.36750219,108270.0,108260.0,0.04694489]
[1756687853931,0.36750219,108270.0,108260.0,0.23168532]
[1756687854170,0.34656337,108270.0,108260.0,0.32866533]
[1756687854375,0.34656337,108270.0,108260.0,0.32466533]
[1756687854753,0.34656337,108270.0,108260.0,0.32766533]
[1756687854893,0.18470774,108280.0,108260.0,0.87350276]
[1756687855096,0.34650631,108280.0,108270.0,0.62899985]
[1756687855328,0.1618,108280.0,108270.0,0.62871081]
[1756687856001,0.34650631,108280.0,108270.0,0.62871081]
[1756687856439,0.18470631,108280.0,108270.0,0.63071081]
[1756687856883,0.18470631,108280.0,108270.0,0.63171081]
[1756687857476,0.18470631,108280.0,108270.0,0.28587338]
[1756687857676,0.18470631,108280.0,108270.0,0.63171081]
[1756687858242,0.18470631,108280.0,108270.0,0.6979364]
[1756687859303,0.18470631,108280.0,108270.0,0.63171081]
[1756687860283,0.4121143,108290.0,108280.0,0.18470631]
[1756687860485,0.0721143,108290.0,108280.0,0.62869375]
[1756687860728,0.6864322,108300.0,108290.0,0.18468926]
[1756687860953,0.6864322,108300.0,108290.0,0.6255267]
[1756687861152,0.70737102,108300.0,108290.0,0.09815001]
[1756687861347,0.70942102,108300.0,108290.0,0.09815001]
[1756687861771,0.70737102,108300.0,108290.0,0.28283927]
[1756687861972,0.70741832,108300.0,108290.0,0.13998374]
[1756687862974,0.70939832,108300.0,108290.0,0.13481374]
[1756687863367,0.70939832,108300.0,108290.0,0.04183373]
[1756687863640,0.70939832,108300.0,108280.0,0.00315]
[1756687863641,0.18468926,108290.0,108280.0,0.00315]
[1756687863847,0.18468926,108290.0,108280.0,0.28083632]
[1756687864051,0.16172,108290.0,108280.0,0.28285632]
[1756687864284,0.34640926,108290.0,108280.0,0.62869375]
[1756687864918,0.34640926,108290.0,108280.0,0.28285632]
[1756687865946,0.34640926,108290.0,108280.0,0.28385632]
[1756687866359,0.34640926,108290.0,108280.0,0.09915001]
[1756687866576,0.34640926,108290.0,108280.0,0.10145883]
[1756687866936,0.34640926,108290.0,108280.0,0.28616514]
[1756687867141,0.34640926,108290.0,108280.0,0.28385632]
[1756687867350,0.71657193,108300.0,108280.0,0.63069375]
[1756687867551,0.21489193,108300.0,108280.0,0.62754375]
[1756687867750,4.73e-05,108300.0,108290.0,0.5328353]
[1756687867998,4.73e-05,108300.0,108290.0,0.6255267]
[1756687868201,4.73e-05,108300.0,108290.0,0.6286767]
[1756687868401,4.73e-05,108300.0,108290.0,0.8286767]
[1756687868574,0.0010473,108300.0,108290.0,0.89490229]
[1756687869659,4.73e-05,108300.0,108290.0,0.89490229]
[1756687869868,4.73e-05,108300.0,108290.0,0.89590229]
[1756687870079,4.73e-05,108300.0,108290.0,0.55006486]
[1756687870277,4.73e-05,108300.0,108290.0,0.89590229]
[1756687871145,4.73e-05,108300.0,108290.0,0.92365229]
[1756687871557,4.73e-05,108300.0,108290.0,0.96602261]
[1756687871900,4.73e-05,108300.0,108290.0,0.96502261]
[1756687872101,4.73e-05,108300.0,108290.0,1.16502261]
[1756687872312,4.73e-05,108300.0,108290.0,1.56702261]
[1756687873660,4.73e-05,108300.0,108290.0,1.57002261]
[1756687875098,4.73e-05,108300.0,108290.0,1.73162261]
[1756687877213,4.73e-05,108300.0,108290.0,1.88162261]
[1756687877430,4.73e-05,108300.0,108290.0,1.8981719]
[1756687879701,4.73e-05,108300.0,108290.0,1.7365719]
[1756687879919,4.73e-05,108300.0,108290.0,1.8981319]
[1756687880125,4.73e-05,108300.0,108290.0,1.7365719]
[1756687880331,4.73e-05,108300.0,108290.0,1.8981319]
[1756687881247,0.0721143,108310.0,108300.0,0.1846722]
[1756687881450,0.0721143,108310.0,108300.0,0.78224101]
[1756687881895,0.0721143,108310.0,108300.0,1.34376101]
[1756687882376,0.0721143,108310.0,108300.0,1.18324101]
[1756687882704,0.0721143,108310.0,108300.0,1.34476101]
[1756687884218,0.0721143,108310.0,108300.0,1.34672101]
[1756687884753,0.0721143,108310.0,108300.0,1.18524101]
[1756687884960,0.0721143,108310.0,108300.0,1.34672101]
[1756687885984,0.0721143,108310.0,108300.0,1.66438322]
[1756687886192,0.0721143,108310.0,108300.0,1.93158322]
[1756687886700,0.0721143,108310.0,108300.0,1.95932622]
[1756687888227,0.0721143,108310.0,108300.0,1.79784622]
[1756687888450,0.0721143,108310.0,108300.0,1.95928622]
[1756687890040,0.0721143,108330.0,108320.0,0.3846381]
[1756687890283,0.25869536,108330.0,108320.0,0.81448793]
[1756687890457,0.25869536,108330.0,108320.0,0.97076793]
[1756687891510,0.25869536,108330.0,108320.0,0.29298001]
[1756687891709,0.25969536,108330.0,108320.0,0.62472983]
[1756687891914,0.26069536,108330.0,108320.0,1.01246531]
[1756687892730,0.26069536,108330.0,108320.0,0.85106531]
[1756687892906,0.26069536,108330.0,108320.0,1.01246531]
[1756687893537,0.25969536,108330.0,108320.0,1.01246531]
[1756687893753,0.25869536,108330.0,108320.0,1.01246531]
[1756687894844,0.25869536,108330.0,108320.0,1.02210643]
[1756687896565,0.25869536,108330.0,108320.0,0.50567851]
[1756687896778,0.28132418,108330.0,108320.0,0.2126985]
[1756687897939,0.28132418,108330.0,108320.0,0.17100112]
[1756687898171,0.613074,108330.0,108320.0,0.17100112]
[1756687898398,0.5392697,108330.0,108320.0,0.35563922]
[1756687898630,0.18470041,108340.0,108330.0,0.18462106]
[1756687898856,0.00047497,108340.0,108330.0,0.28272107]
[1756687899077,0.00047497,108340.0,108330.0,0.61447089]
[1756687899299,0.00047497,108340.0,108330.0,0.68058415]
[1756687899700,0.00047497,108340.0,108330.0,0.88058415]
[1756687900018,0.00147497,108340.0,108330.0,0.88058415]
[1756687900299,0.00147497,108340.0,108330.0,0.54883433]
[1756687900444,0.00047497,108340.0,108330.0,0.88058415]
[1756687900842,0.00047497,108340.0,108330.0,1.28158415]
[1756687901057,0.18703899,108340.0,108330.0,0.94983433]
[1756687901262,0.00243497,108340.0,108330.0,1.11111433]
[1756687901621,0.00047497,108340.0,108330.0,1.11111433]
[1756687901771,0.00047497,108340.0,108330.0,1.11311433]
[1756687902187,0.00047497,108340.0,108330.0,1.44486415]
[1756687903392,0.00047497,108340.0,108330.0,0.95183433]
[1756687903611,0.00047497,108340.0,108330.0,1.11311433]
[1756687903967,0.00047497,108340.0,108330.0,0.95183433]
[1756687904178,0.00047497,108340.0,108330.0,1.11311433]
[1756687904382,0.18703899,108340.0,108330.0,1.11307433]
[1756687905132,0.00243497,108340.0,108330.0,1.11307433]
[1756687905338,0.18703899,108340.0,108330.0,1.11307433]
[1756687905539,0.00047497,108340.0,108330.0,1.11307433]
[1756687905688,0.00047497,108340.0,108330.0,1.44482415]
[1756687906235,0.00047497,108340.0,108330.0,1.28358415]
[1756687906236,0.18507899,108340.0,108330.0,1.28358415]
[1756687906446,0.18507899,108340.0,108330.0,1.11307433]
[1756687907073,0.00047497,108340.0,108330.0,1.11307433]
[1756687908016,0.00047497,108340.0,108330.0,1.04696107]
[1756687908230,0.00047497,108340.0,108330.0,1.86046071]
[1756687908459,0.00047497,108340.0,108330.0,1.94309208]
[1756687908881,0.00047497,108340.0,108330.0,1.86046071]
[1756687909097,0.00047497,108340.0,108330.0,1.85846071]
[1756687909329,8.127e-05,108340.0,108330.0,1.85846071]
[1756687909558,8.127e-05,108340.0,108330.0,2.24946071]
[1756687909796,0.0721143,108370.0,108360.0,0.91631977]
[1756687910022,0.07225679,108370.0,108360.0,1.30763058]
[1756687910249,0.07225679,108370.0,108360.0,1.31295058]
[1756687910494,0.07225679,108370.0,108360.0,1.71295058]
[1756687910698,0.07225679,108370.0,108360.0,1.75380534]
[1756687911558,0.07225679,108370.0,108360.0,1.75580534]
[1756687912093,0.25680971,108370.0,108360.0,1.59460534]
[1756687912308,0.07225679,108370.0,108360.0,1.75576534]
[1756687913454,0.25877971,108370.0,108360.0,1.06285552]
[1756687913610,0.59052953,108370.0,108360.0,0.36891477]
[1756687913818,0.59052953,108370.0,108360.0,0.29795477]
[1756687914378,0.25877971,108370.0,108360.0,0.48252472]
[1756687914585,0.00211249,108370.0,108360.0,0.48463472]
[1756687914792,0.00014249,108370.0,108360.0,0.48784472]
[1756687914980,0.00014249,108370.0,108360.0,0.81959454]
[1756687915188,0.18469541,108370.0,108360.0,0.48784472]
[1756687915410,0.18666541,108370.0,108360.0,0.48252472]
[1756687915604,0.00211249,108370.0,108360.0,0.48252472]
[1756687915800,0.18666541,108370.0,108360.0,0.48784472]
[1756687916778,0.18666541,108370.0,108360.0,0.32140472]
[1756687916975,0.18666541,108370.0,108360.0,0.13683477]
[1756687917181,0.51841523,108370.0,108360.0,0.29791477]
[1756687917381,0.51841523,108370.0,108360.0,0.69791477]
[1756687917592,0.18666541,108370.0,108360.0,0.69791477]
[1756687917789,0.18666541,108370.0,108360.0,0.29791477]
[1756687917995,0.18666541,108370.0,108360.0,0.48248472]
[1756687919816,0.18666541,108370.0,108360.0,0.48459472]
[1756687920429,0.00014249,108370.0,108360.0,0.81955454]
[1756687920647,0.00014249,108370.0,108360.0,0.89051454]
[1756687920861,0.00014249,108370.0,108360.0,1.55563516]
[1756687921068,0.00014249,108370.0,108360.0,1.22388534]
[1756687921318,0.18666541,108370.0,108360.0,0.89209552]
[1756687921544,0.00014249,108370.0,108360.0,0.91982552]
[1756687921761,0.00014249,108370.0,108360.0,1.22384534]
[1756687923508,0.00014249,108370.0,108360.0,2.15559516]
[1756687923720,0.00014249,108370.0,108360.0,1.82384534]
[1756687924152,0.00014249,108370.0,108360.0,1.66280534]
[1756687924369,0.51841523,108370.0,108360.0,0.94116557]
[1756687924588,0.51841523,108370.0,108360.0,0.70216557]
[1756687924828,0.51841523,108370.0,108360.0,0.36879477]
[1756687925108,0.51841523,108370.0,108360.0,0.55336472]
[1756687925356,0.18666541,108370.0,108360.0,0.55336472]
[1756687925576,0.18666541,108370.0,108360.0,0.36879477]
[1756687926634,0.18666541,108370.0,108360.0,0.55336472]
[1756687926843,0.00211249,108370.0,108360.0,0.55868472]
[1756687927016,0.00014249,108370.0,108360.0,0.55868472]
[1756687927316,0.18469541,108370.0,108360.0,0.62485552]
[1756687927729,0.00014249,108370.0,108360.0,0.62485552]
[1756687927943,0.00014249,108370.0,108360.0,0.58400076]
[1756687928963,0.00014249,108370.0,108360.0,0.91575058]
[1756687930193,0.00014249,108370.0,108360.0,1.35671342]
[1756687930826,0.00014249,108370.0,108360.0,1.68846324]
[1756687931033,0.00014249,108370.0,108360.0,1.62229244]
[1756687931234,0.00014249,108370.0,108360.0,1.31827062]
[1756687931384,0.00014249,108370.0,108360.0,1.40098412]
[1756687932030,0.00014249,108370.0,108360.0,1.0692343]
[1756687932227,0.00014249,108370.0,108360.0,1.40098412]
[1756687934919,0.00014249,108370.0,108360.0,1.73273394]
[1756687935306,0.00014249,108370.0,108360.0,1.99993394]
[1756687935514,0.00014249,108370.0,108360.0,1.99981394]
[1756687936030,2.45e-05,108370.0,108360.0,2.19981394]
[1756687936216,2.45e-05,108370.0,108360.0,2.28308573]
[1756687936418,2.45e-05,108370.0,108360.0,2.12220573]
[1756687936647,2.45e-05,108370.0,108360.0,2.28308573]
[1756687937052,2.45e-05,108370.0,108360.0,2.28008573]
[1756687937265,2.45e-05,108370.0,108360.0,2.28608573]
[1756687937485,0.0004,108400.0,108390.0,0.33451886]
[1756687937827,0.0004,108400.0,108390.0,1.40541048]
[1756687937964,0.0004,108400.0,108390.0,1.41073048]
[1756687938169,0.0004,108400.0,108390.0,1.67761148]
[1756687938374,0.0004,108400.0,108390.0,1.50670166]
[1756687938797,0.0004,108400.0,108390.0,1.83845148]
[1756687939809,0.0004,108400.0,108390.0,1.88131727]
[1756687940012,0.0004,108400.0,108390.0,1.56279253]
[1756687940420,0.0004,108400.0,108390.0,1.40095253]
[1756687940616,0.0004,108400.0,108390.0,1.57137968]
[1756687940818,0.0004,108400.0,108390.0,1.57437968]
[1756687941655,0.0004,108400.0,108390.0,1.41357968]
[1756687942080,0.0004,108400.0,108390.0,1.77437968]
[1756687942473,0.0004,108400.0,108390.0,1.69172771]
[1756687943041,0.0004,108400.0,108390.0,1.77437968]
[1756687943241,0.0004,108400.0,108390.0,1.69172771]
[1756687944006,0.00238,108400.0,108390.0,1.18063281]
[1756687944146,0.00238,108400.0,108390.0,1.37959713]
[1756687944554,0.00238,108400.0,108390.0,1.22381713]
[1756687944758,0.00238,108400.0,108390.0,0.68431827]
[1756687944759,0.18688184,108400.0,108390.0,0.68431827]
[1756687944963,0.18857184,108400.0,108390.0,0.2087658]
[1756687945190,0.53354674,108400.0,108390.0,0.3695258]
[1756687945371,0.18857184,108400.0,108390.0,0.2986058]
[1756687945775,0.18857184,108400.0,108390.0,0.2966058]
[1756687946225,0.18857184,108400.0,108390.0,0.2956058]
[1756687946656,0.55448556,108400.0,108390.0,0.20262579]
[1756687946823,0.20951066,108400.0,108390.0,0.20262579]
[1756687947028,0.55448556,108400.0,108390.0,0.20262579]
[1756687948502,1.23946046,108400.0,108390.0,0.04186579]
[1756687948704,0.20545768,108390.0,108380.0,0.16072]
[1756687948910,0.55410258,108390.0,108380.0,0.16072]
[1756687950047,0.18455292,108370.0,108360.0,0.89145762]
[1756687950270,0.18653292,108370.0,108360.0,0.56054817]
[1756687950488,0.18653292,108370.0,108360.0,0.30434562]
[1756687950711,0.18653292,108370.0,108360.0,0.48891557]
[1756687951069,0.18653292,108370.0,108360.0,0.30434562]
[1756687951275,0.18653292,108370.0,108360.0,0.29562285]
[1756687951776,0.18653292,108370.0,108360.0,0.13494285]
[1756687951934,0.18653292,108370.0,108360.0,0.29562285]
[1756687952737,0.20916174,108370.0,108360.0,0.13494285]
[1756687952936,0.55413664,108370.0,108360.0,0.13394285]
[1756687953149,0.55413664,108370.0,108360.0,0.29462285]
[1756687953377,0.55413664,108370.0,108360.0,0.29562285]
[1756687953584,0.55413664,108370.0,108360.0,0.20264284]
[1756687953728,0.20747174,108370.0,108360.0,0.20164284]
[1756687953935,0.20747174,108370.0,108360.0,0.4841728]
[1756687954164,0.20549174,108370.0,108360.0,0.4841728]
[1756687955139,0.20747174,108370.0,108360.0,0.29960285]
[1756687955336,0.20549174,108370.0,108360.0,0.4841728]
[1756687956565,0.02093882,108370.0,108360.0,0.4841728]
[1756687956823,0.20549174,108370.0,108360.0,0.4841728]
[1756687957036,0.20747174,108370.0,108360.0,0.29960285]
[1756687957239,0.20747174,108370.0,108360.0,0.13394285]
[1756687957465,0.20747174,108370.0,108360.0,0.29462285]
[1756687957667,0.02291882,108370.0,108360.0,0.4791928]
[1756687958037,0.20747174,108370.0,108360.0,0.29662285]
[1756687958213,0.20747174,108370.0,108360.0,0.29462285]
[1756687958419,0.20747174,108370.0,108360.0,0.4791928]
[1756687959028,0.02093882,108370.0,108360.0,0.4841728]
[1756687959229,0.20549174,108370.0,108360.0,0.4841728]
[1756687960914,0.02093882,108370.0,108360.0,0.4841728]
[1756687961317,0.2658591,108390.0,108370.0,0.18455292]
[1756687961507,0.2658591,108390.0,108380.0,0.16064]
[1756687961508,0.59663316,108390.0,108380.0,0.16064]
[1756687961708,0.25663316,108390.0,108380.0,0.4431359]
[1756687961920,0.18451886,108390.0,108380.0,0.4431359]
[1756687962152,0.18649886,108390.0,108380.0,0.25362001]
[1756687962354,0.18649886,108390.0,108380.0,0.25358001]
[1756687962569,0.18649886,108390.0,108380.0,0.4381159]
[1756687962776,0.18649886,108390.0,108380.0,0.4401159]
[1756687962982,0.18649886,108390.0,108380.0,0.25358001]
[1756687963220,0.55241258,108390.0,108380.0,0.09298001]
[1756687963437,0.18453589,108380.0,108370.0,0.25047238]
[1756687963653,0.55044961,108380.0,108370.0,0.06592532]
[1756687963863,0.18455292,108370.0,108360.0,0.61109527]
[1756687964087,0.18655292,108370.0,108360.0,0.70407528]
[1756687964289,0.18655292,108370.0,108360.0,0.63814996]
[1756687964489,0.18655292,108370.0,108360.0,0.64014996]
[1756687964695,0.18655292,108370.0,108360.0,0.45856001]
[1756687964901,0.18655292,108370.0,108360.0,0.45358001]
[1756687965102,0.18655292,108370.0,108360.0,0.63814996]
[1756687965302,0.18655292,108370.0,108360.0,0.64014996]
[1756687965602,0.18655292,108370.0,108360.0,0.47954996]
[1756687965813,0.18655292,108370.0,108360.0,0.64014996]
[1756687966065,0.18655292,108370.0,108360.0,0.52050033]
[1756687966195,0.18655292,108370.0,108360.0,0.68110033]
[1756687966396,0.18655292,108370.0,108360.0,0.49653038]
[1756687966622,0.18655292,108370.0,108360.0,0.68408033]
[1756687967238,0.18655292,108370.0,108360.0,0.52348033]
[1756687967448,0.18655292,108370.0,108360.0,0.68404033]
[1756687967593,0.18455292,108370.0,108360.0,0.68404033]
[1756687967795,0.20547471,108380.0,108370.0,0.18455292]
[1756687967999,0.20547471,108380.0,108370.0,0.18953292]
[1756687968452,0.20547471,108380.0,108370.0,0.28251293]
[1756687968634,0.20547471,108380.0,108370.0,0.09796001]
[1756687969489,0.20745471,108380.0,108370.0,0.09796001]
[1756687971158,0.20745471,108380.0,108370.0,0.25354001]
[1756687973289,0.20745471,108380.0,108370.0,0.25565001]
[1756687973512,0.20745471,108380.0,108370.0,0.25881001]
[1756687973902,0.55242961,108380.0,108370.0,0.25350001]
[1756687974057,0.53899278,108380.0,108370.0,0.09298001]
[1756687974264,0.53899278,108380.0,108370.0,0.31942533]
[1756687975856,0.53899278,108380.0,108370.0,0.32153533]
[1756687976064,0.18453589,108380.0,108370.0,0.50924825]
[1756687976450,0.6942248,108390.0,108370.0,0.84078632]
[1756687976661,0.71516362,108390.0,108380.0,0.00316]
[1756687977094,0.71516362,108390.0,108380.0,0.00527]
[1756687977749,0.71516362,108390.0,108380.0,0.18980589]
[1756687978126,0.71516362,108390.0,108380.0,0.25573121]
[1756687978774,0.55468362,108390.0,108380.0,0.25573121]
[1756687978981,0.55468362,108390.0,108380.0,0.07119532]
[1756687979478,0.55666362,108390.0,108380.0,0.07119532]
[1756687980435,0.71710362,108390.0,108380.0,0.07119532]
[1756687980656,0.55666362,108390.0,108380.0,0.07119532]
[1756687980923,1.06235391,108390.0,108380.0,0.06592532]
[1756687981109,0.71879362,108390.0,108380.0,0.06592532]
[1756687981311,0.71879362,108390.0,108370.0,0.50705825]
[1756687981312,0.18453589,108380.0,108370.0,0.50705825]
[1756687981517,0.55666362,108390.0,108380.0,0.00211]
[1756687981724,0.19412693,108400.0,108390.0,0.18451886]
[1756687981936,0.0004,108400.0,108390.0,0.50597419]
[1756687982143,0.0004,108400.0,108390.0,0.52586084]
[1756687982572,0.18490184,108400.0,108390.0,0.56654637]
[1756687983015,0.18490184,108400.0,108390.0,0.52586084]
[1756687983361,0.18490184,108400.0,108390.0,0.44320887]
[1756687983572,0.18490184,108400.0,108390.0,0.09825001]
[1756687983775,0.18490184,108400.0,108390.0,0.32486034]
[1756687983978,0.18688184,108400.0,108390.0,0.32170034]
[1756687984245,0.18688184,108400.0,108390.0,0.5093792]
[1756687984446,0.18490184,108400.0,108390.0,0.5093792]
[1756687984832,0.53213213,108400.0,108390.0,0.31959034]
[1756687985241,0.53213213,108400.0,108390.0,0.15919034]
[1756687986201,0.55476095,108400.0,108390.0,0.06621033]
[1756687986406,0.18451886,108390.0,108380.0,0.41110622]
[1756687986732,0.18451886,108390.0,108380.0,0.50935623]
[1756687988619,0.18451886,108390.0,108380.0,0.32482034]
[1756687988830,0.18451886,108390.0,108380.0,0.31955034]
[1756687988831,0.18649886,108390.0,108380.0,0.31955034]
[1756687989396,0.18649886,108390.0,108380.0,0.32166034]
[1756687989602,0.55268797,108390.0,108380.0,0.15919034]
[1756687991049,0.18453589,108380.0,108370.0,0.22653033]
[1756687991260,0.52978618,108380.0,108370.0,0.31951034]
[1756687991448,0.53176618,108380.0,108370.0,0.31951034]
[1756687991895,0.53176618,108380.0,108370.0,0.32162034]
[1756687992048,0.552705,108380.0,108370.0,0.32478034]
[1756687992248,0.552705,108380.0,108370.0,0.31951034]
[1756687992453,0.552705,108380.0,108370.0,0.15919034]
[1756687992763,0.20549174,108370.0,108360.0,0.06621033]
[1756687993122,0.55074203,108370.0,108360.0,0.22653033]
[1756687993252,0.20550877,108360.0,108350.0,0.06937033]
[1756687993449,0.20550877,108360.0,108350.0,0.32281283]
[1756687993708,0.20748877,108360.0,108350.0,0.32281283]
[1756687993927,0.20550877,108360.0,108350.0,0.50950981]
[1756687994503,0.02093882,108360.0,108350.0,0.50950981]
[1756687994711,0.20550877,108360.0,108350.0,0.50950981]
[1756687994955,0.02093882,108360.0,108350.0,0.44429948]
[1756687995157,0.18455292,108370.0,108350.0,0.44429948]
[1756687995379,0.18455292,108370.0,108360.0,0.16466952]
[1756687995380,0.20549174,108370.0,108360.0,0.16466952]
[1756687995775,0.20549174,108370.0,108360.0,0.16677952]
[1756687996056,0.20747174,108370.0,108360.0,0.1592024]
[1756687996261,0.55272203,108370.0,108360.0,0.3215924]
[1756687996661,0.55272203,108370.0,108360.0,0.22650239]
[1756687997680,0.55272203,108370.0,108360.0,0.26850447]
[1756687999173,0.55272203,108370.0,108360.0,0.27061447]
[1756687999599,0.55272203,108370.0,108360.0,0.26850447]
[1756687999868,0.55272203,108370.0,108360.0,0.27377447]
[1756687999869,0.20549174,108370.0,108360.0,0.27377447]
[1756688000074,0.20747174,108370.0,108360.0,0.27377447]
[1756688000620,0.20549174,108370.0,108360.0,0.45834442]
[1756688000830,0.20549174,108370.0,108360.0,0.27377447]
[1756688002683,0.20549174,108370.0,108360.0,0.45834442]
[1756688003247,0.20549174,108370.0,108360.0,0.27377447]
[1756688003465,0.6939848,108390.0,108370.0,0.18455292]
[1756688003686,0.6939848,108390.0,108380.0,0.00531]
[1756688003941,0.18453589,108380.0,108370.0,0.34696532]
[1756688004445,0.18453589,108380.0,108370.0,0.34585532]
[1756688004925,0.18453589,108380.0,108370.0,0.34906532]
[1756688005137,0.69923509,108390.0,108370.0,0.34906532]
[1756688005348,0.18453589,108380.0,108370.0,0.34585532]
[1756688005562,0.02093882,108390.0,108380.0,0.18453589]
[1756688005778,0.02093882,108390.0,108380.0,0.50603829]
[1756688005981,0.20545768,108390.0,108380.0,0.50924829]
[1756688008273,0.55506575,108400.0,108390.0,0.18451886]
[1756688008478,0.71526575,108400.0,108390.0,0.00531]
[1756688010112,0.54584066,108400.0,108390.0,0.28511535]
[1756688010320,0.54584066,108400.0,108390.0,0.28280887]
[1756688010714,0.0004,108400.0,108390.0,0.28280887]
[1756688010888,0.0004,108400.0,108390.0,0.69897916]
[1756688011100,0.0004,108400.0,108390.0,1.34179113]
[1756688011318,0.0004,108400.0,108390.0,1.38423873]
[1756688012088,0.0004,108400.0,108390.0,1.53423873]
[1756688012673,0.0004,108400.0,108390.0,1.53619873]
[1756688014664,0.0004,108400.0,108390.0,1.37607873]
[1756688014875,0.0004,108400.0,108390.0,1.53619873]
[1756688016213,0.0004,108400.0,108390.0,1.19094844]
[1756688016473,0.0004,108400.0,108390.0,1.53619873]
[1756688016969,0.0004,108400.0,108390.0,1.53615873]
[1756688017529,0.0004,108400.0,108390.0,1.87615873]
[1756688017906,0.0004,108400.0,108390.0,1.79350676]
[1756688018138,0.0004,108410.0,108400.0,0.92450184]
[1756688018364,0.00053148,108410.0,108400.0,1.76119243]
[1756688018585,0.0721143,108440.0,108430.0,0.58445079]
[1756688018842,0.0721143,108440.0,108430.0,1.18272109]
[1756688019074,0.0721143,108440.0,108430.0,0.8427808]
[1756688019301,0.0721143,108440.0,108430.0,1.18803109]
[1756688019992,0.0004,108450.0,108440.0,0.18443378]
[1756688020242,0.00087451,108450.0,108440.0,0.62797408]
[1756688020472,0.00087451,108450.0,108440.0,0.28272379]
[1756688020700,0.00087451,108450.0,108440.0,0.69889408]
[1756688020932,0.00087451,108450.0,108440.0,0.74084025]
[1756688022524,0.00087451,108450.0,108440.0,0.55558996]
[1756688022781,0.00087451,108450.0,108440.0,1.45084025]
[1756688024427,0.00087451,108450.0,108440.0,1.45184025]
[1756688024655,0.00087451,108450.0,108440.0,1.82479654]
[1756688024878,0.0725143,108480.0,108470.0,0.18438277]
[1756688025105,0.07463665,108480.0,108470.0,0.44263278]
[1756688025339,0.07265665,108480.0,108470.0,0.44263278]
[1756688025789,0.07265665,108480.0,108470.0,0.48386139]
[1756688026245,0.00054235,108480.0,108470.0,0.48386139]
[1756688026478,0.00054235,108480.0,108470.0,0.88386139]
[1756688026766,0.00054235,108480.0,108470.0,0.72390139]
[1756688027000,0.00252235,108480.0,108470.0,0.88382139]
[1756688027457,0.00054235,108480.0,108470.0,0.88382139]
[1756688028112,0.00054235,108480.0,108470.0,1.22907168]
[1756688029187,0.0004,108490.0,108480.0,0.58436578]
[1756688029444,0.0004,108500.0,108490.0,0.18434878]
[1756688029687,0.0004,108510.0,108500.0,0.58433179]
[1756688029946,0.0004474,108510.0,108500.0,0.8371918]
[1756688030201,0.0024274,108510.0,108500.0,0.84889322]
[1756688030451,0.0024274,108510.0,108500.0,1.25208322]
[1756688031337,0.0004474,108510.0,108500.0,1.09220322]
[1756688031804,0.0004474,108510.0,108500.0,1.25208322]
[1756688032558,0.1847622,108510.0,108500.0,1.09220322]
[1756688032780,0.0004474,108510.0,108500.0,1.25204322]
[1756688034489,0.0004474,108510.0,108500.0,1.29426511]
[1756688035106,0.0004474,108510.0,108500.0,1.29422511]
[1756688036155,0.0004474,108510.0,108500.0,1.6394754]
[1756688037394,0.0004474,108510.0,108500.0,1.29422511]
[1756688038352,0.0004474,108510.0,108500.0,1.13442511]
[1756688038561,0.1867422,108510.0,108500.0,0.92909511]
[1756688038766,0.1867422,108510.0,108500.0,1.08885511]
[1756688038963,0.0024274,108510.0,108500.0,1.09418511]
[1756688039443,0.1867422,108510.0,108500.0,1.09418511]
[1756688040038,0.0004474,108510.0,108500.0,1.09418511]
[1756688040280,0.1847622,108510.0,108500.0,0.93442511]
[1756688040491,0.1884322,108510.0,108500.0,0.6949619]
[1756688040713,0.1867422,108510.0,108500.0,0.2949219]
[1756688040918,0.1867422,108510.0,108500.0,0.48458369]
[1756688041746,0.1867422,108510.0,108500.0,0.49395037]
[1756688043377,0.1867422,108510.0,108500.0,0.48862037]
[1756688043898,0.53368249,108510.0,108500.0,0.2949219]
[1756688044104,0.53199249,108510.0,108500.0,0.2949219]
[1756688044311,0.1867422,108510.0,108500.0,0.49076316]
[1756688044523,0.1867422,108510.0,108500.0,0.47925369]
[1756688044726,0.1867422,108510.0,108500.0,0.2949219]
[1756688045129,0.53199249,108510.0,108500.0,0.2949219]
[1756688045336,0.1867422,108510.0,108500.0,0.2949219]
[1756688046449,0.53368249,108510.0,108500.0,0.1352019]
[1756688046658,0.53368249,108510.0,108500.0,0.04222189]
[1756688046659,0.55462131,108510.0,108500.0,0.04222189]
[1756688046901,0.5632052,108510.0,108500.0,0.20190189]
[1756688047123,0.18433179,108500.0,108490.0,0.35968]
[1756688047335,0.18631179,108500.0,108490.0,0.63700879]
[1756688048071,0.18631179,108500.0,108490.0,0.4619609]
[1756688048275,0.18631179,108500.0,108490.0,0.25266001]
[1756688048276,0.5541909,108500.0,108490.0,0.25266001]
[1756688048688,0.5627895,108500.0,108490.0,0.25266001]
[1756688048933,0.5610995,108500.0,108490.0,0.25266001]
[1756688049276,0.0085986,108500.0,108490.0,0.25799001]
[1756688049496,0.0085986,108500.0,108490.0,0.44233879]
[1756688049809,0.18631179,108500.0,108490.0,0.44233879]
[1756688050034,0.18433179,108500.0,108490.0,0.44233879]
[1756688051279,0.5247622,108510.0,108500.0,0.18433179]
[1756688051486,0.53337116,108510.0,108500.0,0.2826418]
[1756688052042,0.53337116,108510.0,108500.0,0.09831001]
[1756688052242,0.5267422,108510.0,108500.0,0.10061415]
[1756688052467,0.53535838,108510.0,108500.0,0.10061415]
[1756688052863,0.5267422,108510.0,108500.0,0.10061415]